bitfinex/quotes_SOLUSD_20220210
["timestamp","ask_amount","ask_price","bid_price","bid_amount"]
[1644453563019,37.1037,113.69,113.62,38.0534]
[1644453563316,13.2004,113.69,113.62,38.0534]
[1644453563616,13.1992,113.7,113.62,56.70580258]
[1644453563815,13.1992,113.7,113.62,56.95580258]
[1644453564716,13.4492,113.7,113.62,56.95580258]
[1644453564916,13.4492,113.7,113.62,56.92218735]
[1644453565116,17.8482,113.7,113.62,56.92218735]
[1644453566216,13.4492,113.7,113.62,56.92218735]
[1644453566417,13.4492,113.7,113.62,56.67218735]
[1644453566619,14.68581468,113.7,113.62,56.67218735]
[1644453567217,13.4492,113.7,113.62,56.67218735]
[1644453567618,13.1992,113.7,113.62,56.64818735]
[1644453567819,13.1992,113.7,113.63,0.024]
[1644453568222,13.1992,113.7,113.65,13.1987]
[1644453568619,13.1992,113.7,113.66,46.59781827]
[1644453568819,13.4492,113.7,113.66,46.59781827]
[1644453569324,4.399,113.71,113.66,59.79591827]
[1644453569622,4.0,113.76,113.66,74.29932085]
[1644453569623,5.66626611,113.74,113.66,74.29932085]
[1644453569820,1.26826611,113.74,113.67,23.7596]
[1644453570020,1.23661468,113.74,113.67,23.7596]
[1644453570423,1.23661468,113.73,113.69,13.1939]
[1644453570624,5.66526611,113.76,113.69,22.2333836]
[1644453570827,0.03165143,113.74,113.69,41.13378618]
[1644453571025,1.26826611,113.77,113.69,41.13378618]
[1644453571224,0.03165143,113.77,113.69,41.13378618]
[1644453571423,1.23661468,113.78,113.73,0.30395082]
[1644453571624,0.03165143,113.76,113.73,25.88295082]
[1644453571824,1.26826611,113.8,113.74,3.03219997]
[1644453572026,1.24137336,113.81,113.74,18.52439994]
[1644453572223,4.394,113.83,113.77,0.30790053]
[1644453572224,0.00137336,113.83,113.77,0.30790053]
[1644453572425,2.47000413,113.87,113.8,0.31418316]
[1644453572625,4.392,113.89,113.81,12.46]
[1644453572825,4.391,113.9,113.82,36.15991148]
[1644453573027,4.391,113.91,113.82,36.15991148]
[1644453573225,5.24951715,113.9,113.82,36.15991148]
[1644453573429,36.73117447,113.88,113.82,36.15991148]
[1644453573626,36.73117447,113.88,113.8,25.639]
[1644453573826,4.392,113.87,113.78,35.2626]
[1644453574025,4.392,113.87,113.78,12.46]
[1644453574525,11.13228738,113.86,113.79,39.42602538]
[1644453575125,4.392,113.87,113.79,39.42602538]
[1644453575325,4.392,113.87,113.79,39.67602538]
[1644453575527,4.392,113.87,113.78,12.46]
[1644453575727,4.392,113.87,113.77,12.46]
[1644453575932,19.77958261,113.87,113.76,12.46]
[1644453576128,19.77958261,113.87,113.75,13.1849]
[1644453576334,17.5741,113.87,113.75,25.6449]
[1644453576529,56.38267581,113.87,113.76,50.94204878]
[1644453577128,56.38267581,113.87,113.76,51.19204878]
[1644453577329,56.38267581,113.87,113.77,13.1832]
[1644453577530,4.392,113.86,113.78,52.95908203]
[1644453577728,4.392,113.86,113.78,62.84908203]
[1644453578332,4.392,113.86,113.78,62.59908203]
[1644453578533,35.70528115,113.85,113.78,62.59908203]
[1644453578729,4.392,113.86,113.78,52.95908203]
[1644453578928,4.392,113.86,113.78,53.20908203]
[1644453579729,4.392,113.86,113.78,66.39098203]
[1644453579930,13.1821,113.87,113.78,66.39098203]
[1644453580132,1.37465024,113.86,113.78,66.14098203]
[1644453580331,1.37465024,113.86,113.78,52.95908203]
[1644453580332,18.94995024,113.86,113.78,52.95908203]
[1644453580530,14.55795024,113.86,113.78,53.20908203]
[1644453580931,14.55795024,113.86,113.78,66.14078203]
[1644453581134,14.80795024,113.86,113.78,66.39078203]
[1644453581532,14.80795024,113.86,113.78,66.14078203]
[1644453581933,4.392,113.85,113.78,52.95908203]
[1644453583336,4.392,113.85,113.78,53.20908203]
[1644453583537,13.1833,113.86,113.78,52.95908203]
[1644453583936,13.1833,113.86,113.78,57.35108203]
[1644453584636,39.74167072,113.85,113.78,57.35108203]
[1644453584836,57.31917072,113.85,113.78,52.95908203]
[1644453585036,52.92617072,113.85,113.78,52.95908203]
[1644453585336,52.92617072,113.85,113.78,40.49908203]
[1644453585936,53.17617072,113.85,113.78,40.49908203]
[1644453587840,13.4345,113.85,113.78,40.49908203]
[1644453588740,49.21222416,113.85,113.78,40.49908203]
[1644453589844,13.4345,113.85,113.78,40.49908203]
[1644453595377,34.98283382,113.86,113.78,53.68158203]
[1644453595378,0.03201513,113.86,113.78,53.68158203]
[1644453595580,0.03201513,113.86,113.78,68.18126175]
[1644453596978,0.03201513,113.87,113.78,68.18126175]
[1644453597878,0.03201513,113.87,113.8,36.53918708]
[1644453598081,0.03201513,113.87,113.8,49.71898708]
[1644453598279,0.03201513,113.87,113.8,49.96898708]
[1644453599882,4.42401513,113.87,113.8,49.96898708]
[1644453600483,4.42401513,113.87,113.8,49.71898708]
[1644453600684,6.89401926,113.87,113.8,49.71898708]
[1644453602784,14.89045094,113.87,113.8,49.71898708]
[1644453602984,2.28783002,113.86,113.8,49.71898708]
[1644453603184,2.31984515,113.86,113.8,49.71898708]
[1644453603386,4.78984928,113.86,113.8,49.71898708]
[1644453603585,0.03201513,113.86,113.8,49.71898708]
[1644453603884,4.758856,113.86,113.8,49.71898708]
[1644453604084,2.50201926,113.86,113.8,49.71898708]
[1644453604289,0.03201513,113.86,113.8,49.71898708]
[1644453604488,2.47000413,113.86,113.8,49.71898708]
[1644453604685,13.21381513,113.86,113.8,49.71898708]
[1644453606186,13.46381513,113.86,113.8,49.71898708]
[1644453606889,0.28201513,113.86,113.8,49.71898708]
[1644453607089,0.03201513,113.86,113.8,49.71898708]
[1644453607288,4.642,113.87,113.8,49.71898708]
[1644453607490,0.03201513,113.86,113.8,49.71898708]
[1644453607691,0.03201513,113.87,113.8,49.71898708]
[1644453608489,4.79120987,113.87,113.8,49.71898708]
[1644453608690,4.79120987,113.87,113.8,49.96898708]
[1644453608891,4.79120987,113.87,113.81,4.392]
[1644453608892,0.03201513,113.87,113.81,4.392]
[1644453609092,2.72000413,113.88,113.81,4.392]
[1644453609292,0.25,113.88,113.83,13.1773]
[1644453609495,0.28201513,113.88,113.83,13.1773]
[1644453609895,0.28201513,113.88,113.83,49.85854047]
[1644453610093,0.03201513,113.88,113.83,49.85854047]
[1644453610294,4.79045844,113.89,113.83,49.85854047]
[1644453610995,0.03201513,113.89,113.83,49.85854047]
[1644453611196,63.43521711,113.9,113.83,49.85854047]
[1644453612396,15.67901926,113.9,113.83,49.85854047]
[1644453612998,13.20901513,113.9,113.83,49.85854047]
[1644453613197,13.45901513,113.9,113.83,49.85854047]
[1644453613497,54.02176545,113.9,113.83,49.85854047]
[1644453613698,54.02176545,113.9,113.83,13.1773]
[1644453613921,56.49176958,113.9,113.81,30.0316]
[1644453614099,13.1793,113.88,113.81,25.6396]
[1644453614298,13.21131513,113.88,113.81,25.6396]
[1644453614699,13.21131513,113.88,113.82,45.11854066]
[1644453615800,13.21131513,113.88,113.82,58.29714066]
[1644453616500,13.21131513,113.88,113.82,58.54714066]
[1644453616699,0.03201513,113.88,113.82,58.54714066]
[1644453617299,0.03201513,113.9,113.82,58.29714066]
[1644453617503,0.03201513,113.9,113.82,60.08682038]
[1644453617701,0.03201513,113.9,113.82,60.33682038]
[1644453618303,0.03201513,113.9,113.83,12.46]
[1644453618501,0.03201513,113.9,113.85,13.1735]
[1644453618701,0.03201513,113.92,113.85,13.1735]
[1644453618902,4.42201513,113.92,113.86,46.44159019]
[1644453619101,4.39,113.92,113.86,46.44159019]
[1644453619401,4.42201513,113.92,113.86,46.44159019]
[1644453620001,4.42201513,113.92,113.87,13.1734]
[1644453620216,2.47000413,113.93,113.87,13.4234]
[1644453620404,0.03201513,113.94,113.87,13.4234]
[1644453620805,0.03201513,113.95,113.88,46.41968551]
[1644453621113,0.03201513,113.95,113.9,13.1695]
[1644453621307,47.10294671,113.99,113.9,13.1695]
[1644453621308,2.50201926,113.98,113.9,13.1695]
[1644453621505,0.03201513,113.97,113.9,13.1695]
[1644453621907,0.03201513,113.97,113.91,36.12726795]
[1644453622108,0.03201513,113.97,113.92,13.1678]
[1644453622308,4.388,113.96,113.92,13.1678]
[1644453622509,4.41801513,113.97,113.92,13.1678]
[1644453622707,4.386,113.97,113.92,13.1678]
[1644453622907,4.41801513,113.97,113.92,13.1678]
[1644453623307,4.41801513,113.97,113.93,43.18577289]
[1644453623507,4.66801513,113.98,113.93,43.18577289]
[1644453623707,4.636,113.98,113.93,43.18577289]
[1644453624308,17.8032,113.98,113.93,43.18577289]
[1644453624508,17.8032,113.98,113.93,56.35257289]
[1644453624711,13.4172,113.98,113.93,56.35257289]
[1644453628012,13.4172,113.98,113.93,43.18577289]
[1644453628212,4.386,113.97,113.93,43.18577289]
[1644453628613,4.386,113.97,113.92,13.1677]
[1644453628812,4.386,113.97,113.9,12.46]
[1644453628813,17.5546,113.97,113.9,12.46]
[1644453629030,13.4186,113.97,113.89,24.7222]
[1644453629230,15.65609774,113.97,113.88,12.46]
[1644453629430,15.65609774,113.97,113.88,4.388]
[1644453629631,23.18051571,113.97,113.89,35.24772457]
[1644453629832,13.45061513,113.97,113.89,35.24772457]
[1644453630230,13.45061513,113.97,113.89,48.41892457]
[1644453630931,4.388,113.96,113.89,61.12892457]
[1644453631133,0.28201513,113.97,113.89,60.87892457]
[1644453631729,0.28201513,113.97,113.89,61.12892457]
[1644453631929,0.28201513,113.97,113.89,60.87892457]
[1644453632332,0.03201513,113.97,113.89,60.87892457]
[1644453632529,4.42001513,113.98,113.89,60.87892457]
[1644453632731,13.20081513,113.97,113.89,61.12892457]
[1644453632933,13.1688,113.97,113.89,61.12892457]
[1644453633132,13.20081513,113.97,113.89,60.87892457]
[1644453633331,13.20081513,113.97,113.89,61.12892457]
[1644453635736,13.45081513,113.97,113.89,60.87892457]
[1644453636537,14.18271441,113.96,113.89,60.87892457]
[1644453636737,14.18271441,113.96,113.89,48.41892457]
[1644453636938,13.1715,113.95,113.89,48.41892457]
[1644453638138,13.1715,113.95,113.87,4.388]
[1644453638339,6.59448261,113.94,113.84,48.2998]
[1644453638538,13.1759,113.91,113.84,4.389]
[1644453638739,13.1759,113.91,113.85,6.0]
[1644453638938,13.20791513,113.91,113.84,6.0]
[1644453639144,13.1759,113.91,113.85,43.59012269]
[1644453639539,13.4259,113.91,113.85,43.59012269]
[1644453639739,13.4259,113.91,113.85,56.76602269]
[1644453642040,13.4259,113.91,113.85,13.1759]
[1644453643142,13.4259,113.91,113.85,59.90481081]
[1644453643541,13.4259,113.91,113.85,13.1759]
[1644453644343,4.39,113.9,113.85,13.1759]
[1644453644548,9.79471441,113.89,113.85,13.1759]
[1644453644943,4.39,113.9,113.85,13.1759]
[1644453645148,4.64,113.9,113.85,13.1759]
[1644453647444,0.03201513,113.92,113.85,13.1759]
[1644453647746,2.50201926,113.93,113.88,13.1725]
[1644453647944,0.03201513,113.92,113.88,13.1725]
[1644453648146,51.92951926,113.96,113.88,13.1725]
[1644453648544,86.26325757,113.96,113.89,38.54620522]
[1644453648744,4.388,113.95,113.89,13.1709]
[1644453649545,4.388,113.95,113.87,24.2905]
[1644453649745,6.89001926,113.95,113.87,24.2905]
[1644453649945,11.05971941,113.94,113.87,62.73881305]
[1644453650147,4.389,113.93,113.87,75.91241305]
[1644453650547,4.389,113.93,113.87,76.16241305]
[1644453650746,4.389,113.93,113.87,75.91241305]
[1644453650947,4.389,113.93,113.87,76.16241305]
[1644453651147,4.389,113.93,113.87,75.91241305]
[1644453651348,0.03201513,113.94,113.87,75.91241305]
[1644453651548,41.4605837,113.95,113.87,75.91241305]
[1644453651846,54.6327837,113.95,113.87,75.91241305]
[1644453652246,54.6327837,113.95,113.87,37.4641]
[1644453652447,2.28849674,113.94,113.85,12.46]
[1644453652647,4.39,113.93,113.81,39.9458]
[1644453652848,13.1766,113.91,113.81,83.8689]
[1644453653050,4.42301513,113.9,113.81,12.46]
[1644453653246,6.43489328,113.89,113.81,50.66113957]
[1644453653546,4.391,113.88,113.81,50.66113957]
[1644453653752,13.1795,113.88,113.82,13.1795]
[1644453653947,0.03201513,113.9,113.82,13.1795]
[1644453654147,25.97870413,113.92,113.82,35.8344]
[1644453654148,0.03201513,113.89,113.82,35.8344]
[1644453654349,0.03201513,113.9,113.82,35.8344]
[1644453654548,0.03201513,113.89,113.82,35.8344]
[1644453654748,40.80196447,113.9,113.83,37.67017713]
[1644453654947,0.03201513,113.89,113.83,50.84787713]
[1644453655148,4.391,113.89,113.83,50.84787713]
[1644453655349,40.76994934,113.9,113.83,50.84787713]
[1644453656552,4.391,113.9,113.83,50.84787713]
[1644453656750,17.5679,113.9,113.83,50.84787713]
[1644453657556,53.95127645,113.9,113.83,50.84787713]
[1644453659059,49.56027645,113.9,113.83,50.84787713]
[1644453659661,49.81027645,113.9,113.83,50.84787713]
[1644453661059,4.391,113.89,113.83,50.84787713]
[1644453661262,53.95127645,113.9,113.84,6.0]
[1644453661462,53.95127645,113.9,113.84,19.1772]
[1644453663187,54.20127645,113.9,113.84,19.1772]
[1644453664388,49.81027645,113.9,113.84,19.1772]
[1644453664587,49.81027645,113.9,113.84,13.1772]
[1644453666087,13.1769,113.9,113.84,13.1772]
[1644453666290,4.42201513,113.91,113.84,13.4272]
[1644453666587,0.03201513,113.93,113.85,1.78965884]
[1644453666788,0.03201513,113.93,113.87,13.171]
[1644453666990,4.42201513,113.95,113.87,25.631]
[1644453667187,0.03201513,113.94,113.88,48.16531984]
[1644453667386,4.67201513,113.95,113.88,48.16531984]
[1644453667787,3.60615075,113.94,113.88,48.16531984]
[1644453667988,3.60615075,113.94,113.89,13.1705]
[1644453668187,4.67201513,113.95,113.89,13.1705]
[1644453668391,4.64,113.95,113.89,13.1705]
[1644453668989,0.03201513,113.96,113.89,22.6475]
[1644453669192,0.03201513,113.97,113.9,37.57437266]
[1644453669389,2.32322291,113.98,113.91,13.1679]
[1644453669589,0.03201513,113.98,113.91,13.1679]
[1644453669791,4.388,113.97,113.88,37.4432]
[1644453669989,13.1715,113.96,113.88,37.4432]
[1644453670191,4.389,113.95,113.88,37.4432]
[1644453670391,0.03201513,113.95,113.88,50.6154]
[1644453670591,13.20351513,113.96,113.89,45.09312811]
[1644453670790,13.1715,113.96,113.89,45.09312811]
[1644453670994,13.4215,113.96,113.89,45.09312811]
[1644453671192,42.71280229,113.95,113.88,37.4432]
[1644453671395,13.1734,113.94,113.88,12.46]
[1644453671591,49.33930003,113.95,113.85,12.46]
[1644453671592,4.389,113.93,113.85,12.46]
[1644453671791,9.807,113.93,113.85,12.46]
[1644453671993,12.01248261,113.93,113.85,12.46]
[1644453672293,12.01248261,113.93,113.86,37.61419347]
[1644453672294,5.15065956,113.92,113.86,37.61419347]
[1644453672591,34.17175956,113.92,113.83,12.46]
[1644453672791,34.20377469,113.92,113.83,12.46]
[1644453673292,34.20377469,113.92,113.83,12.71]
[1644453673497,34.20377469,113.92,113.84,42.05358706]
[1644453673696,29.81377469,113.92,113.84,55.23048706]
[1644453673893,29.81377469,113.92,113.84,55.48048706]
[1644453674093,29.81377469,113.92,113.84,55.23048706]
[1644453674496,29.81377469,113.92,113.84,13.1769]
[1644453674694,29.81377469,113.92,113.83,4.39]
[1644453674695,32.0192573,113.92,113.83,4.39]
[1644453674894,4.39,113.91,113.82,38.0641]
[1644453675095,13.1802,113.89,113.82,38.0641]
[1644453675298,24.3082,113.89,113.82,13.1793]
[1644453675496,24.3082,113.89,113.81,22.9779]
[1644453675497,42.71280229,113.88,113.81,44.12916917]
[1644453675697,47.10380229,113.88,113.81,44.12916917]
[1644453675899,4.391,113.88,113.81,44.12916917]
[1644453676299,71.52741513,113.91,113.81,44.12916917]
[1644453676498,71.27741513,113.91,113.81,68.22056917]
[1644453676697,27.34361513,113.91,113.81,68.47056917]
[1644453676897,69.42271586,113.91,113.81,68.47056917]
[1644453677498,27.34361513,113.91,113.81,72.86156917]
[1644453677698,13.1774,113.9,113.81,98.50196917]
[1644453682203,17.5672,113.91,113.81,98.50196917]
[1644453682404,0.03201513,113.92,113.81,98.50196917]
[1644453682604,4.391,113.92,113.81,121.17516917]
[1644453682805,4.42301513,113.92,113.81,121.17516917]
[1644453683204,4.42301513,113.92,113.82,6.0]
[1644453683406,4.42301513,113.92,113.85,13.1737]
[1644453683606,0.03201513,113.92,113.86,35.9538013]
[1644453683807,13.20651513,113.93,113.86,36.2038013]
[1644453684208,13.45651513,113.93,113.86,36.2038013]
[1644453684508,13.45651513,113.93,113.86,35.9538013]
[1644453684707,13.45651513,113.93,113.87,13.1733]
[1644453685108,13.4245,113.93,113.86,35.9538013]
[1644453686413,17.8145,113.93,113.86,35.9538013]
[1644453686808,17.8145,113.93,113.86,49.1284013]
[1644453689015,13.4245,113.93,113.86,49.1284013]
[1644453689212,0.25,113.93,113.86,49.1284013]
[1644453689418,0.25,113.93,113.86,61.5884013]
[1644453689613,4.42201513,113.94,113.86,61.8384013]
[1644453689815,0.03201513,113.94,113.86,66.2274013]
[1644453690013,0.03201513,113.95,113.86,66.2274013]
[1644453690415,0.03201513,113.95,113.86,65.9774013]
[1644453690615,0.03201513,113.95,113.86,66.2274013]
[1644453691317,0.03201513,113.95,113.86,65.9774013]
[1644453691520,0.03201513,113.95,113.86,66.2274013]
[1644453692316,1.24611982,113.94,113.86,66.2274013]
[1644453692517,1.27813495,113.94,113.86,65.9774013]
[1644453692717,1.27813495,113.94,113.86,66.2274013]
[1644453693216,1.52813495,113.94,113.86,65.9774013]
[1644453693419,1.52813495,113.94,113.86,66.2274013]
[1644453694021,1.52813495,113.94,113.86,65.9774013]
[1644453694219,1.52813495,113.94,113.86,79.1505013]
[1644453695519,1.52813495,113.94,113.86,78.9005013]
[1644453695719,1.52813495,113.94,113.86,79.1505013]
[1644453695918,1.27813495,113.94,113.86,78.9005013]
[1644453696320,1.27813495,113.94,113.86,79.1505013]
[1644453697219,1.52813495,113.94,113.86,79.1505013]
[1644453698422,1.52813495,113.94,113.86,78.9005013]
[1644453698623,4.389,113.93,113.86,79.1505013]
[1644453698822,5.63511982,113.93,113.86,79.1505013]
[1644453699822,1.24611982,113.93,113.86,74.7615013]
[1644453700724,1.24611982,113.93,113.86,74.5115013]
[1644453700924,1.24611982,113.93,113.86,74.7615013]
[1644453701124,1.49611982,113.93,113.86,74.7615013]
[1644453701527,1.49611982,113.93,113.86,74.5115013]
[1644453701727,1.49611982,113.93,113.86,74.7615013]
[1644453703527,1.49611982,113.93,113.86,74.5115013]
[1644453703726,1.49611982,113.93,113.86,61.5884013]
[1644453703949,1.24611982,113.92,113.86,61.5884013]
[1644453704152,5.63611982,113.92,113.86,61.5884013]
[1644453704651,4.39,113.92,113.86,61.5884013]
[1644453704850,1.27813495,113.94,113.86,65.9784013]
[1644453705051,1.24611982,113.94,113.86,66.2284013]
[1644453705351,1.27813495,113.94,113.86,65.9784013]
[1644453705752,1.24611982,113.93,113.86,65.9784013]
[1644453706154,1.24611982,113.92,113.86,65.9784013]
[1644453707153,5.63611982,113.93,113.86,66.2284013]
[1644453707355,1.24611982,113.93,113.86,65.9784013]
[1644453707557,1.24611982,113.93,113.86,66.2284013]
[1644453708454,1.49611982,113.93,113.86,66.2284013]
[1644453708655,1.24611982,113.93,113.86,66.2284013]
[1644453708856,1.49611982,113.93,113.86,66.2284013]
[1644453709056,1.24611982,113.93,113.86,65.9784013]
[1644453709260,1.24611982,113.93,113.86,66.2284013]
[1644453709456,1.24611982,113.93,113.86,65.9784013]
[1644453709658,1.24611982,113.93,113.86,61.8384013]
[1644453710156,1.24611982,113.92,113.86,61.8384013]
[1644453710559,1.24611982,113.92,113.86,61.5884013]
[1644453710957,1.24611982,113.92,113.86,61.8384013]
[1644453711558,1.24611982,113.93,113.86,150.0284013]
[1644453711757,0.03201513,113.94,113.86,150.0284013]
[1644453711758,1.24611982,113.94,113.86,150.0284013]
[1644453711961,1.24611982,113.94,113.86,164.1050574]
[1644453712257,1.24611982,113.94,113.87,6.0]
[1644453712457,1.24611982,113.93,113.89,13.169]
[1644453712657,1.24611982,113.93,113.9,41.99879001]
[1644453713158,1.24611982,113.93,113.91,6.06439994]
[1644453713359,1.24611982,113.93,113.91,19.23359994]
[1644453718267,1.24611982,113.93,113.92,44.38616383]
[1644453718467,1.49611982,113.93,113.92,44.38616383]
[1644453718665,1.49611982,113.93,113.91,19.23359994]
[1644453721268,1.24611982,113.93,113.91,19.23359994]
[1644453721467,1.24611982,113.94,113.91,19.23359994]
[1644453722166,1.24611982,113.93,113.91,19.23359994]
[1644453723671,1.24611982,113.94,113.91,19.23359994]
[1644453724874,1.24611982,113.93,113.91,19.23359994]
[1644453727674,1.24611982,113.94,113.91,19.23359994]
[1644453730077,1.24611982,113.95,113.91,19.23359994]
[1644453730877,1.24611982,113.94,113.91,19.23359994]
[1644453731077,1.24611982,113.95,113.91,19.23359994]
[1644453731479,0.03201513,113.97,113.91,19.23359994]
[1644453731780,0.03201513,113.98,113.93,13.1641]
[1644453731978,0.44074671,113.99,113.93,25.6241]
[1644453732179,0.44074671,113.99,113.93,30.2601]
[1644453732383,0.44074671,113.99,113.94,34.56668625]
[1644453732579,0.44074671,113.99,113.94,47.02668625]
[1644453732781,0.44074671,113.99,113.94,47.27668625]
[1644453732979,0.03201513,114.01,113.95,13.1618]
[1644453733181,2.50201926,114.03,113.95,49.7604]
[1644453733381,0.03201513,114.02,113.95,49.7604]
[1644453733585,0.03201513,114.03,113.95,49.5104]
[1644453733780,4.41801513,114.04,113.95,49.5104]
[1644453733981,0.03201513,114.03,113.96,39.98953269]
[1644453734182,6.88801926,114.04,113.98,42.64757947]
[1644453734381,0.03201513,114.03,113.98,42.64757947]
[1644453734583,4.386,114.04,113.98,42.64757947]
[1644453734883,6.85600413,114.04,113.98,42.64757947]
[1644453735084,4.636,114.04,113.98,42.64757947]
[1644453735682,13.1616,114.03,113.98,55.80897947]
[1644453736488,4.41701513,114.05,113.98,55.80897947]
[1644453736489,29.30271513,114.05,113.98,55.80897947]
[1644453736684,24.8857,114.05,113.98,55.80897947]
[1644453737807,38.295,114.05,113.98,55.80897947]
[1644453738007,38.045,114.05,113.98,55.80897947]
[1644453739109,45.81511893,114.05,113.98,55.80897947]
[1644453740113,46.06511893,114.05,113.98,55.80897947]
[1644453743715,4.385,114.04,113.97,37.65279073]
[1644453743917,17.546,114.04,113.95,4.385]
[1644453744316,34.25223261,114.03,113.89,13.1692]
[1644453744617,19.53349774,114.02,113.88,24.5388]
[1644453744818,19.53349774,114.02,113.89,4.387]
[1644453744819,13.17,113.99,113.89,4.387]
[1644453745024,0.45,113.97,113.84,16.848]
[1644453745219,0.03201513,113.96,113.84,4.388]
[1644453745420,12.00301513,113.96,113.83,4.389]
[1644453745622,12.46,113.95,113.82,4.39]
[1644453745819,12.16011893,113.94,113.83,35.5676741]
[1644453746219,14.36560154,113.94,113.83,35.5676741]
[1644453746419,27.53870154,113.94,113.83,35.5676741]
[1644453746619,36.14908963,113.92,113.83,35.5676741]
[1644453746819,7.77011893,113.9,113.82,4.414]
[1644453747020,7.77011893,113.9,113.82,4.39]
[1644453747419,6.59648261,113.89,113.78,0.024]
[1644453747624,13.1855,113.86,113.81,0.024]
[1644453747818,40.54108963,113.85,113.77,44.5608496]
[1644453748020,40.54108963,113.85,113.78,0.024]
[1644453748218,40.54108963,113.85,113.77,44.5608496]
[1644453748219,4.392,113.85,113.77,44.5608496]
[1644453748620,4.392,113.85,113.77,0.024]
[1644453748821,13.1869,113.83,113.74,0.024]
[1644453749020,4.394,113.82,113.71,0.024]
[1644453749222,6.59948261,113.82,113.71,0.024]
[1644453749523,4.394,113.82,113.71,0.024]
[1644453749721,13.1863,113.84,113.72,18.64234329]
[1644453749921,4.394,113.83,113.73,0.024]
[1644453750126,37.4209,113.92,113.74,16.854]
[1644453750323,24.9609,113.92,113.75,6.024]
[1644453750622,24.9609,113.92,113.77,47.14289526]
[1644453750821,13.1793,113.9,113.78,4.415]
[1644453751021,13.1793,113.9,113.79,12.484]
[1644453751221,4.391,113.89,113.8,4.391]
[1644453751423,13.1793,113.9,113.8,6.20334329]
[1644453751624,4.391,113.89,113.81,0.024]
[1644453751923,4.391,113.89,113.81,42.66139681]
[1644453752324,17.8213,113.89,113.81,42.66139681]
[1644453752526,0.25,113.89,113.81,44.4497401]
[1644453752726,4.391,113.91,113.81,44.6997401]
[1644453752924,4.641,113.91,113.82,0.024]
[1644453753725,17.8194,113.91,113.82,0.024]
[1644453753928,4.391,113.91,113.82,1.8180583]
[1644453754129,4.391,113.94,113.83,4.415]
[1644453754326,4.39,113.95,113.84,12.46]
[1644453754726,4.39,113.95,113.85,1.7940583]
[1644453754929,4.39,113.95,113.86,58.49867344]
[1644453755132,0.03201513,113.96,113.87,0.32157063]
[1644453755334,0.03201513,113.97,113.88,16.849]
[1644453755528,4.388,114.02,113.93,0.32462655]
[1644453755730,4.386,114.06,113.94,12.77048267]
[1644453755930,13.1599,114.07,113.98,0.31201714]
[1644453756130,36.79150178,114.08,113.99,53.36427268]
[1644453756453,36.79150178,114.08,113.97,16.844]
[1644453756630,4.385,114.07,113.95,12.46]
[1644453756829,13.1611,114.06,113.96,4.385]
[1644453757229,4.385,114.05,113.96,4.385]
[1644453757430,7.12770678,114.04,113.95,4.385]
[1644453757631,4.386,114.03,113.91,12.46]
[1644453758029,12.46,114.02,113.89,4.386]
[1644453758234,13.1699,113.99,113.89,4.386]
[1644453758630,49.05293377,113.99,113.9,43.35433419]
[1644453758930,13.1699,113.99,113.9,43.35433419]
[1644453759431,4.388,113.98,113.9,43.35433419]
[1644453760731,17.558,113.98,113.9,43.35433419]
[1644453760932,11.249459,113.97,113.9,43.35433419]
[1644453761435,11.249459,113.97,113.9,47.99233419]
[1644453761833,11.249459,113.97,113.9,4.638]
[1644453762133,24.420659,113.97,113.9,4.388]
[1644453762533,4.388,113.96,113.9,4.388]
[1644453762735,32.66974956,113.95,113.9,4.388]
[1644453763737,4.388,113.94,113.9,4.388]
[1644453763960,32.66974956,113.95,113.87,4.389]
[1644453764334,32.91974956,113.95,113.87,4.389]
[1644453764539,32.91974956,113.95,113.88,45.78507642]
[1644453764936,32.91974956,113.95,113.87,4.389]
[1644453765136,37.30874956,113.95,113.85,24.3424]
[1644453765336,50.48264956,113.95,113.84,4.413]
[1644453765540,2.20548261,113.94,113.84,4.413]
[1644453765736,4.39,113.93,113.84,0.024]
[1644453765938,11.249459,113.92,113.83,40.17522755]
[1644453766136,11.249459,113.92,113.84,0.024]
[1644453766740,24.426259,113.92,113.84,0.024]
[1644453767938,24.676259,113.92,113.84,0.024]
[1644453769241,24.676259,113.92,113.83,0.024]
[1644453769242,17.5688,113.91,113.83,0.024]
[1644453770140,17.5688,113.91,113.83,38.753514]
[1644453770343,4.39,113.91,113.83,38.753514]